Cogmind - Beta 13 @@@ ROGUE MODE // 2024.04.13 @ 00:18:48 Player: Olafz Result: Destroyed by P-60 Hacker with Shock Rifle Performance ------------- Evolutions (2) 1000 Regions Visited (6) 1200 Robots Destroyed (39) 195 Value Destroyed (1821) 1821 Prototype IDs (25) 500 Alien Tech Used (0) 0 Bonus (354) 354 TOTAL SCORE: 5070 Bonus ------- High Alert Combat Kills 48 Follower Combat Kills 116 Entered Garrisons 200 Friendly Fire -10 Cogmind --------- Core Integrity 0/550 Matter 300/300 Energy 92/100 System Corruption 2% Temperature Cool (0) Movement Walking (190) Ox1 Location -8/Garrison Parts ------- > --- POWER (1) -------- (None) > --- PROPULSION (3) --- Carbon-fiber Leg > --- UTILITY (5) ------ Advanced Heat Sink Medium Storage Unit Makeshift Hacking Suite > --- WEAPON (2) ------- Power Maul Makeshift Spear > --- INVENTORY (10) --- Relay Coupler [NC] (26) Relay Coupler [Grunt] (27) Relay Coupler [Sentry] (21) Relay Coupler [Demolisher] (23) Relay Coupler [Hunter] (17) Heavy Laser Gauss Rifle Power Maul Power Maul Peak State ------------ > --- POWER ------------ Light Deuterium Engine > --- PROPULSION ------- Carbon-fiber Leg Carbon-fiber Leg Improved Titanium Leg > --- UTILITY ---------- Advanced Heat Sink Medium Storage Unit Hardened Medium Armor Plating Makeshift Hacking Suite Skeleton Box > --- WEAPON ----------- Makeshift Laser Power Maul > --- INVENTORY -------- Light Nuclear Core Improved Titanium Leg Improved Titanium Leg Improved Heat Sink Tractor Beam High-powered Tractor Beam Particle Gun Power Maul Power Maul Makeshift Spear [Rating: 43] Favorites ----------- Power Ion Engine Engine Ion Engine Power Core Light Nuclear Core Propulsion Aluminum Leg Leg Aluminum Leg Utility Medium Storage Unit Device Skeleton Box Storage Medium Storage Unit Hackware Makeshift Hacking Suite Protection Hardened Medium Armor Plating Weapon Light Assault Rifle Energy Gun Particle Gun Ballistic Gun Light Assault Rifle Impact Weapon Power Maul Piercing Weapon Makeshift Spear Build | -11 -10 -10 -10 -9 -8 -8 ------- Run | Yrd Mat Min Exi Min Mat Gar Slots Evolved 4 | . . . . . 4 . Power . | . . . . . . . Propulsion 1 | . . . . . 1 . Utility 3 | . . . . . 3 . Weapon . | . . . . . . . Parts Attached 42 | . 1 8 3 . 15 15 Power 8 | . . 2 . . 2 4 Engine 4 | . . 2 . . 1 1 Core 4 | . . . . . 1 3 Reactor . | . . . . . . . Propulsion 16 | . . 3 . . 5 8 Treads . | . . . . . . . Leg 16 | . . 3 . . 5 8 Wheel . | . . . . . . . Hover . | . . . . . . . Flight . | . . . . . . . Utility 12 | . 1 1 2 . 6 2 Device 9 | . 1 1 1 . 4 2 Storage 1 | . . . 1 . . . Processor . | . . . . . . . Hackware 1 | . . . . . 1 . Protection 1 | . . . . . 1 . Artifact . | . . . . . . . Weapon 6 | . . 2 1 . 2 1 Energy Gun 3 | . . 1 1 . 1 . Energy Cannon . | . . . . . . . Ballistic Gun 1 | . . 1 . . . . Ballistic Cannon . | . . . . . . . Launcher . | . . . . . . . Special Weapon . | . . . . . . . Impact Weapon 1 | . . . . . 1 . Slashing Weapon . | . . . . . . . Piercing Weapon 1 | . . . . . . 1 Special Melee Weapon . | . . . . . . . Unidentified Prototypes 1 | . . . 1 . . . Parts Lost 16 | . 1 1 . . 2 12 Power 5 | . 1 1 . . 1 2 Propulsion 7 | . . . . . . 7 Utility 4 | . . . . . 1 3 Weapon . | . . . . . . . Highest Loss Streak 8 | . 1 1 . . 2 8 To Critical Strikes . | . . . . . . . Average Slot Usage (%) 93 | . 85 98 100 100 96 83 Engine 8 | . 8 12 14 14 7 1 Core 2 | . . . . . 1 6 Leg 27 | . 28 28 28 28 26 25 Device 13 | . 5 14 14 14 20 11 Storage 11 | . 14 14 14 14 9 9 Hackware 4 | . . . . . 9 9 Protection 1 | . . . . . 4 2 Energy Gun 9 | . 14 14 14 14 9 1 Ballistic Gun 7 | . 14 14 14 14 . . Impact Weapon 4 | . . . . . 8 9 Piercing Weapon 2 | . . . . . . 7 Naked Turns . | . . . . . . . Heaviest Build 33 | 12 12 15 20 20 33 33 Greatest Support 60 | 20 20 20 20 20 60 50 Greatest Overweight (x) 5 | . . . . . 1 5 Average Overweight (x) . | . . . . . . . Largest Inventory Capacity 10 | . 8 8 10 10 10 10 Average Capacity 9 | . 8 8 8 10 10 10 Most Carried 10 | . 7 8 8 9 10 10 Average Carried 8 | . 6 7 7 8 8 9 Final Capacity 10 | 8 8 8 10 10 10 10 Final Carried 10 | 6 7 8 8 9 10 9 Class Distribution -------------------- 61% | Scavenger-Mutant 38% | Mutant Dominant Class ---------------- Mutant | -10/Materials Mutant | -10/Mines Scavenger-Mutant | -10/Exiles Scavenger-Mutant | -9/Mines Mutant | -8/Materials Scavenger-Mutant | -8/Garrison Resources | -11 -10 -10 -10 -9 -8 -8 ----------- Run | Yrd Mat Min Exi Min Mat Gar Matter Collected 634 | 200 . 96 . 48 140 150 Remotely . | . . . . . . . Salvage Created 1783 | . 187 162 . 85 626 723 Parts 55 | . 9 7 . 4 12 23 Haulers Intercepted 1 | . 1 . . . . . Recyclers Shooed 1 | . . . . 1 . . Parts Field Recycled . | . . . . . . . Retrieved Matter . | . . . . . . . Parts Self-Destructed . | . . . . . . . Prevented . | . . . . . . . Kills | -11 -10 -10 -10 -9 -8 -8 ------- Run | Yrd Mat Min Exi Min Mat Gar Combat Hostiles Destroyed 35 | . 4 4 . 2 10 15 Melee 17 | . . . . . 5 12 Guns 11 | . 3 4 . 2 2 . AOE 1 | . 1 . . . . . Classes Destroyed 8 | . 2 . . 1 3 2 Hauler 1 | . 1 . . . . . Recycler 3 | . . . . . 3 . Swarmer 5 | . . . . . 2 3 Grunt 23 | . 4 4 . 1 7 7 Brawler 1 | . . . . 1 . . Duelist 1 | . . . . . . 1 Sentry 3 | . . . . . . 3 Hunter 2 | . . . . . 1 1 Best Kill Streak 9 | . 5 3 . 2 7 9 Combat Bots Only 9 | . 4 3 . 2 5 9 Max Kills in Single Turn 2 | . 2 1 . 1 1 1 Gunslinging . | . . . . . . . Exploded 1 | . 1 . . . . . Melee 1 | . . . . . 1 1 Uniques/NPCs Destroyed . | . . . . . . . Combat | -11 -10 -10 -10 -9 -8 -8 -------- Run | Yrd Mat Min Exi Min Mat Gar Hostile Shots Fired 277 | . 8 36 . 11 59 163 Missed 75 | . 2 10 . 2 16 45 Damage Taken 2967 | . 197 280 . 102 635 1753 Core 677 | . 35 60 . 21 132 429 Absorbed by Shields . | . . . . . . . Core Remaining (%) 76 | 100 . . . 53 . . Volleys Fired 44 | . 8 18 . 8 9 1 Largest 2 | . 2 2 . 2 1 1 Hottest 70 | . 60 60 . 70 69 69 Shots Fired 78 | . 16 36 . 16 9 1 Gun 78 | . 16 36 . 16 9 1 Cannon . | . . . . . . . Launcher . | . . . . . . . Special . | . . . . . . . Kinetic 34 | . 8 18 . 8 . . Thermal 44 | . 8 18 . 8 9 1 Explosive . | . . . . . . . Electromagnetic . | . . . . . . . Robot Hit Streak 13 | . 6 12 . 13 4 . Robot Miss Streak 3 | . 2 3 . 2 2 . Penetration Max . | . . . . . . . Secondary Targets 2 | . . 2 . . . . Max Gunslinging Chain 1 | . . 1 . . . . Shots Hit Robots 103 | . 9 28 . 10 24 32 Core Hits 42 | . 10 10 . 3 6 13 Critical Kills 3 | . . . . . 2 1 Critical Parts Destroyed 6 | . . . . . 5 1 Critical Strikes 14 | . . . . . 8 6 Burn 1 | . . . . . 1 . Smash 9 | . . . . . 7 2 Impale 4 | . . . . . . 4 Melee Attacks 88 | . . . . . 24 64 Impact 51 | . . . . . 24 27 Slashing . | . . . . . . . Piercing 37 | . . . . . . 37 Sneak Attacks 3 | . . . . . 2 1 Combat Hostiles 1 | . . . . . . 1 Follow-up Attacks 3 | . . . . . . 3 Damage Inflicted 3036 | . 223 287 . 141 1147 1238 Guns 642 | . 92 287 . 141 122 . Cannons . | . . . . . . . Explosions 131 | . 131 . . . . . Melee 2263 | . . . . . 1025 1238 Ramming . | . . . . . . . Kinetic 196 | . 16 140 . 40 . . Thermal 446 | . 76 147 . 101 122 . Explosive 131 | . 131 . . . . . Electromagnetic . | . . . . . . . Impact 1688 | . . . . . 1025 663 Slashing . | . . . . . . . Piercing 575 | . . . . . . 575 Highest Corruption 2 | . . . . . . 2 Average Corruption 1 | . . . . . . 1 Corruption Purged . | . . . . . . . Corruption Blocked . | . . . . . . . Effects 1 | . . . . . . 1 Message Errors 1 | . . . . . . 1 Overload Shots . | . . . . . . . Overflow Damage 611 | . 35 . . . 448 128 Projectiles . | . . . . . . . Explosions 35 | . 35 . . . . . Melee 576 | . . . . . 448 128 Knockbacks 10 | . . . . . 6 4 Impact 9 | . . . . . 5 4 Kinetic . | . . . . . . . Secondary 1 | . . . . . 1 . Self-Inflicted Damage 125 | . 125 . . . . . Shots 2 | . 2 . . . . . Rammed . | . . . . . . . Targets Rammed . | . . . . . . . Kicked . | . . . . . . . Crushed . | . . . . . . . Highest Temperature 162 | . 44 11 . 162 18 . Average Temperature 52 | . 23 4 . 83 11 . Received Heat Transfer 1113 | . 42 123 . 48 297 603 Siege Activations . | . . . . . . . Robots Corrupted . | . . . . . . . Combat Hostiles . | . . . . . . . Parts Fried 11 | . . . . . 8 3 Impact Corruptions 17 | . . . . . 13 4 Robots Melted . | . . . . . . . Combat Hostiles . | . . . . . . . Parts Melted . | . . . . . . . Heat Transferred 1055 | . 175 325 . 222 333 . Parts Sabotaged . | . . . . . . . Parts Stolen . | . . . . . . . Parts Stripped . | . . . . . . . Power Chain Reactions . | . . . . . . . Alert | -11 -10 -10 -10 -9 -8 -8 ------- Run | Yrd Mat Min Exi Min Mat Gar Peak Influence 624 | . 157 280 . 65 305 624 Initial 198 | . . 61 . . 25 198 Average 241 | . 64 148 . 22 121 420 Maximum Alert Level 2 | . . 1 . . 1 2 Low Security (%) 50 | . 100 72 . 100 73 8 Level 1 23 | . . 27 . . 26 27 Level 2 26 | . . . . . . 64 Level 3 . | . . . . . . . Level 4 . | . . . . . . . Level 5 . | . . . . . . . High Security . | . . . . . . . Max Security . | . . . . . . . Squads Dispatched 3 | . . 1 . . 2 . Investigation 1 | . . 1 . . . . Extermination . | . . . . . . . Reinforcement 1 | . . . . . 1 . Assault . | . . . . . . . Garrison 1 | . . . . . 1 . Intercept . | . . . . . . . Searches Triggered . | . . . . . . . Construction Impeded . | . . . . . . . Haulers Reinforced . | . . . . . . . Active Scanning Responses . | . . . . . . . Cargo Convoy Interrupts . | . . . . . . . Stealth | -11 -10 -10 -10 -9 -8 -8 --------- Run | Yrd Mat Min Exi Min Mat Gar Distress Signals 1 | . . . . . 1 . Communications Jammed . | . . . . . . . Distress Signals . | . . . . . . . Times Spotted 49 | . 4 11 . 2 13 19 Peak Tracking Total 6 | . 4 3 . 2 6 6 Tactical Retreats 1 | . . 1 . . . . Traps | -11 -10 -10 -10 -9 -8 -8 ------- Run | Yrd Mat Min Exi Min Mat Gar Traps Triggered 1 | . . . . . . 1 Indirectly . | . . . . . . . Trap Hack Attempts . | . . . . . . . Triggered . | . . . . . . . Disarmed . | . . . . . . . Reprogrammed . | . . . . . . . Reused . | . . . . . . . Traps Extracted . | . . . . . . . Installed . | . . . . . . . Triggered . | . . . . . . . Machines | -11 -10 -10 -10 -9 -8 -8 ---------- Run | Yrd Mat Min Exi Min Mat Gar Machines Disabled 6 | . 2 . . . . 4 Max in Single Turn 2 | . 2 . . . . 1 Garrison Relay 2 | . . . . . . 2 Machines Repaired . | . . . . . . . Machines Dismantled . | . . . . . . . Machines Sabotaged . | . . . . . . . Overloaded Fab Kills . | . . . . . . . Hacking | -11 -10 -10 -10 -9 -8 -8 --------- Run | Yrd Mat Min Exi Min Mat Gar Machines Accessed 6 | . 1 1 2 . 1 1 Terminals 3 | . 1 1 . . . 1 Fabricators . | . . . . . . . Repair Stations . | . . . . . . . Recycling Units . | . . . . . . . Scanalyzers . | . . . . . . . Garrison Access 1 | . . . . . 1 . Total Hacks 19 | . 3 3 11 . 1 1 Successful 16 | . 2 1 11 . 1 1 Failed 3 | . 1 2 . . . . Catastrophic . | . . . . . . . Database Lockouts . | . . . . . . . Manual 3 | . 1 1 1 . . . Terminals 7 | . 3 3 . . . 1 Fabricators . | . . . . . . . Repair Stations . | . . . . . . . Recycling Units . | . . . . . . . Scanalyzers . | . . . . . . . Garrison Access 1 | . . . . . 1 . Terminal Hacks 14 | . 1 1 11 . . 1 Record 11 | . . 1 10 . . . Prototype ID Bank 1 | . 1 . . . . . Emergency Access Points 1 | . . . . . . 1 Derelict Proto ID Bank 1 | . . . 1 . . . Fabricator Hacks . | . . . . . . . Repair Station Hacks . | . . . . . . . Recycling Unit Hacks . | . . . . . . . Scanalyzer . | . . . . . . . Garrison Access Hacks 1 | . . . . . 1 . Unlock Access 1 | . . . . . 1 . Unauthorized Hacks 1 | . 1 . . . . . Terminals 1 | . 1 . . . . . Botnet 1 | . 1 . . . . . Fabricators . | . . . . . . . Repair Stations . | . . . . . . . Recycling Units . | . . . . . . . Scanalyzers . | . . . . . . . Garrison Access . | . . . . . . . Data Cores Recovered . | . . . . . . . Used . | . . . . . . . Hacking Detections 1 | . . 1 . . . . Full Trace Events 1 | . . 1 . . . . Feedback Events . | . . . . . . . Feedback Blocked . | . . . . . . . Robot Schematics Acquired . | . . . . . . . Robots Built . | . . . . . . . Authchips . | . . . . . . . Time . | . . . . . . . Total Robot Build Rating . | . . . . . . . Part Schematics Acquired . | . . . . . . . Parts Built . | . . . . . . . Authchips . | . . . . . . . Time . | . . . . . . . Total Part Build Rating . | . . . . . . . Parts Repaired . | . . . . . . . Time . | . . . . . . . Parts Recycled . | . . . . . . . Recycled Matter . | . . . . . . . Retrieved Matter . | . . . . . . . Retrieved Components . | . . . . . . . Parts Scanalyzed . | . . . . . . . Part Schematics Acquired . | . . . . . . . Parts Damaged . | . . . . . . . Bothacking | -11 -10 -10 -10 -9 -8 -8 ------------ Run | Yrd Mat Min Exi Min Mat Gar Used RIF Installer . | . . . . . . . Robots Hacked . | . . . . . . . Non-combat . | . . . . . . . Combat . | . . . . . . . Robot Hacks Applied . | . . . . . . . Relay Couplers Released 9 | . . . . . . 9 Machine Destruction 9 | . . . . . . 9 Fabnet Peak Effective % . | . . . . . . . Robots Rewired . | . . . . . . . Allies Hacked . | . . . . . . . Hacks Repelled . | . . . . . . . Allies | -11 -10 -10 -10 -9 -8 -8 -------- Run | Yrd Mat Min Exi Min Mat Gar Total Allies 3 | . . 3 . . . . Largest Group 3 | . . 3 . . . . Highest-Rated Group 40 | . . 40 . . . . Highest-Rated Ally 16 | . . 16 . . . . Total Orders . | . . . . . . . Ally Attacks 27 | . . 27 . . . . Total Damage 313 | . . 313 . . . . Kills 6 | . . 6 . . . . Allies Corrupted . | . . . . . . . Allies Melted . | . . . . . . . Intel | -11 -10 -10 -10 -9 -8 -8 ------- Run | Yrd Mat Min Exi Min Mat Gar Robot Analysis Total . | . . . . . . . Derelict Logs Recovered 1 | . . 1 . . . . Drone Launches . | . . . . . . . Drone Recoveries . | . . . . . . . Exploration | -11 -10 -10 -10 -9 -8 -8 ------------- Run | Yrd Mat Min Exi Min Mat Gar Turns Passed 2373 | . 130 395 654 110 371 713 Spaces Moved 1566 | 1 88 265 535 67 180 430 Core 1 | . . . . . . 1 Treads . | . . . . . . . Legs 1565 | 1 88 265 535 67 180 429 Wheels . | . . . . . . . Hover . | . . . . . . . Flight . | . . . . . . . Fastest Speed 120 | 120 120 120 120 120 123 123 Average Speed 122 | 120 120 120 120 120 131 123 Slowest Speed 300 | 120 120 120 120 120 190 300 Overloaded Moves . | . . . . . . . Propulsion Burnouts . | . . . . . . . Robots Hopped . | . . . . . . . Cave-ins Triggered . | . . . . . . . Exploration Rate (%) 39 | 1 23 69 93 24 20 49 Regions Visited 6 Branch Regions 3 Pre-discovered Areas 1 | . . 1 . . . . Known Exits Taken 1 | . . . . . 1 . Unknown Exits Taken 5 | 1 1 1 1 1 . . Scrap Searched 3 | . . 2 . 1 . . Spaces Dug 7 | . . . . . . 7 Terrain Destroyed 42 | . 35 . . . . 7 Melee 7 | . . . . . . 7 Projectile . | . . . . . . . AOE 35 | . 35 . . . . . Terrain Rammed . | . . . . . . . Walls Destroyed . | . . . . . . . Machines Disabled . | . . . . . . . Actions | -11 -10 -10 -10 -9 -8 -8 --------- Run | Yrd Mat Min Exi Min Mat Gar Total 1831 | . 97 311 548 82 260 533 Wait 49 | . . 15 . 7 17 10 Move 1560 | . 87 264 534 66 179 430 Hop . | . . . . . . . Pick Up 19 | . 1 1 2 1 5 9 Fast Attach 16 | . 1 1 1 . 5 8 Attach 8 | . . 1 . . 4 3 Detach 4 | . . . 1 . 2 1 Swap 18 | . . 6 2 . 6 4 Drop 32 | . . 5 5 . 9 13 Fire 44 | . 8 18 . 8 9 1 Melee 78 | . . . . . 24 54 Ram . | . . . . . . . Kick . | . . . . . . . Crush . | . . . . . . . Escape Stasis . | . . . . . . . Rewire 3 | . . . 3 . . . Trap . | . . . . . . . Miscellaneous . | . . . . . . . Route ------- -11/Scrapyard -10/Materials -10/Mines (discovered 2 exits: [*Mat] / *Exi) -10/Exiles -9/Mines -8/Materials -8/Garrison (discovered 1 exit: [*Mat]) History --------- Turn | Location | Event 1 | -11/Scrapyard | Discovered new exit (range 0) 1 | -11/Scrapyard | Entered Materials 109 | -10/Materials | Discovered new exit (range 12) 131 | -10/Materials | Entered Mines 136 | -10/Mines | Assisted by bots powering up and referring to "LRC-V3" 188 | -10/Mines | A weapon hastily lodged in a ceiling crevice suddenly fell to the ground 307 | -10/Mines | Build established: Mutant 403 | -10/Mines | Learned location of Mines (-9) 404 | -10/Mines | Discovered new exit (range 6) 521 | -10/Mines | Deemed a non-threat by the Exiles lab entrance 521 | -10/Mines | Discovered new exit (range 5) 526 | -10/Mines | Entered Exiles 526 | -10/Exiles | Found Exiles lab destroyed 672 | -10/Exiles | Opened EX-Vault 678 | -10/Exiles | Found Prototype Device 678 | -10/Exiles | Identified Skeleton Box 756 | -10/Exiles | Build established: Scavenger-Mutant 1167 | -10/Exiles | Discovered new exit (range 10) 1180 | -10/Exiles | Entered Mines 1285 | -9/Mines | Discovered new exit (range 4) 1290 | -9/Mines | Entered Materials 1290 | -8/Materials | Evolved 4 slots: Propulsion x1, Utility x3 1579 | -8/Materials | Garrison activated, responded to threat 1594 | -8/Materials | Build established: Mutant 1660 | -8/Materials | Identified exit to Garrison 1661 | -8/Materials | Entered Garrison 1707 | -8/Garrison | Triggered checkpoint 1742 | -8/Garrison | Garrison Relay disabled 1845 | -8/Garrison | Triggered checkpoint 1845 | -8/Garrison | Triggered checkpoint 1874 | -8/Garrison | Core integrity fell below 50% 1903 | -8/Garrison | Core integrity fell below 20% 1932 | -8/Garrison | Lost 8 parts (1p4n3u) 1935 | -8/Garrison | Destroyed 9 combat bots 2036 | -8/Garrison | Discovered new exit (range 10) 2105 | -8/Garrison | Triggered checkpoint 2117 | -8/Garrison | Garrison Relay disabled 2301 | -8/Garrison | Triggered checkpoint 2305 | -8/Garrison | Build established: Scavenger-Mutant 2374 | -8/Garrison | Destroyed by P-60 Hacker with Shock Rifle Last Messages --------------- Mak. Spear follow-up attack on G-47 Trooper. Destroyed Particle Gun. Destroyed Imp. Heat Sink. G-47 Trooper system corrupted by crushing effect. G-47 Trooper system terminally corrupted. Lgt. Nuclear Core fried. Acquired Aluminum Leg. Acquired 10 matter. Destroyed Imp. Heat Sink. P-60 Hacker system corrupted by crushing effect. P-60 Hacker knocked back. P-60 Hacker resets P-60 Hacker, system corruption cleaned. Machine disabled. Lgt. Nuclear Core destroyed. P-60 Hacker knocked back. Machine disabled. Imp. Titanium Leg destroyed. Aluminum Leg destroyed. Map ----- +----------------------------------------------------+ | ????????????????????????????????????????????? | | ????????????????????????????????????????????? | | ????????????????????????????????????????????? | | ????????????????????????????????????????????? | | ????????????????????????????????????????????? | | ????????????????????????????????????????????? | | ????????????????????????????????????????????? | | ????????????????????????????????????????????? | | ????????????????????????????????????????????? | | ???????????????????????????????????????+????? | | ?????????????????????????????????#+?????????? | | ????????????????????????????????? ?????????? | | ????????????????????????????????? #????????? | | ???????????????????????????+????? #????????? | | ????????????????????????????????? ????????? | | ????????????????????????????????# #???+????? | | ????????????????????????????????# #????????? | | ???????????????????#######??????# #????????? | | ???????????????##??#"""" #??????# #????????? | | ???????????????#""?#"p #??????# #????????? | | ???????????????#" ?# #??????+ +????????? | | ???????????????#" "#" #??????# #????????? | | ???????????????#" "# ######## #????????? | | ???????????????# #????????? | | ???????????????# ######## #??????##+ | | ???????????????#" p@ #??????# ####+### | | ???????????????#"" " "#???#### | | ???????????????#""""###""#???# %"% | | ???????????????#####??####???# ####T###### | | ?????????????????????????????####??###??### | | ????????????????????????????????????????# | | ????????????????????????????????????????# = | | ????????????????????????????????????????# %* | | ????????????????????????????????????????# [ | | ????????????????????????????????????????### | | ??????????????????????????????????????????# | | ??????????????????????????????????????????# | | ??????????????????????????????????????????# | | ??????????????????????????????????????????# | | ??????????????????????????????????????????## | | ???????????????????????????????????????????# | | ???????????????????????????????????????????# | | ???????????????????????????????????????????# | | ??????????????????????????????????????????## | | ??????????????????????????????????????????#" | | ??????????????????????????###???###???###?## | | ??????????????????????#####"#####"#####"#### | | ???????##############?# | | ???????# #?# * | | ???????# """ #?# ####+##############+ | +----------------------------------------------------+ Best States ------------- Heat Dissipation 50 Energy Generation 14 Energy Capacity 250 Matter Stores 300 Matter Capacity 300 Sight Range 16 Terrain Scan Density 10 Cloak Strength 3 Armor Coverage 225 Evasion (%) 55 Offensive Hacking 11 Item Schematics ----------------- None Robot Schematics ------------------ None Fabricated ------------ Nothing Alien Tech Used ----------------- None Achievements -------------- None Challenges ------------ None Game ------ Seed GrapheneMassDetector Manual? 0 Play Time 00:23:59 Cumulative 46.2 hours Start 2024.04.12 @ 23:50:56 End 2024.04.13 @ 00:18:48 Sessions 1 Manual Loads 0 Difficulty Rogue Special Mode None Game No. 119 Rogue 117 Adventurer 2 Explorer 0 Win Type - Total 0 Types 0/0/0/0/0/0/0/0/0 Lore% 30 Gallery% 38 Achievement% 28 Wizard Run 0 Options --------- Layout 2 ASCII 0 Keyboard 1 Movement Numpad Keybinds 1 Fullscreen 2 Font 24/Smallcaps Map View 50x44 Zoom Use 0% Tactical HUD 1 Map Filters NONE Filters NONE Steam 1 RUN: c71feb03-0fd0-4033-8531-9132de139aba